bitfinex/quotes_SOLUSD_20250823
["timestamp","ask_amount","ask_price","bid_price","bid_amount"]
[1755923896551,0.72,203.19,203.07,0.67]
[1755923896552,46.86,203.18,203.16,15.50403402]
[1755923896737,46.84,203.17,203.09,0.67]
[1755923896937,0.72,203.2,203.16,15.50403402]
[1755923897165,0.72,203.2,203.12,26.0]
[1755923897166,0.72,203.24,203.18,15.50403402]
[1755923897366,46.82,203.19,203.18,15.50403402]
[1755923897950,47.54,203.19,203.14,26.0]
[1755923898149,0.72,203.18,203.14,26.0]
[1755923898363,0.72,203.18,203.16,15.50403402]
[1755923898664,46.78,203.17,203.09,1.16239253]
[1755923898866,46.78,203.17,203.1,3.33781917]
[1755923899075,46.78,203.17,203.16,15.50403402]
[1755923899766,0.72,203.22,203.09,0.67]
[1755923899974,0.72,203.22,203.18,15.50403402]
[1755923900171,0.72,203.26,203.21,15.50403402]
[1755923900380,47.38,203.25,203.12,0.67]
[1755923900542,0.72,203.25,203.22,15.50403402]
[1755923900742,0.72,203.3,203.24,15.50403402]
[1755923900980,36.18,203.29,203.26,15.50403402]
[1755923901296,46.62,203.28,203.22,26.0]
[1755923901471,47.34,203.28,203.27,15.50403402]
[1755923901874,47.34,203.28,203.15,0.67]
[1755923902077,0.72,203.28,203.26,15.50403402]
[1755923902263,46.58,203.27,203.26,15.50403402]
[1755923902457,47.3,203.27,203.22,26.0]
[1755923902662,0.72,203.26,203.24,15.50403402]
[1755923902891,0.72,203.25,203.15,0.67]
[1755923903069,35.46,203.29,203.15,0.67]
[1755923903070,35.46,203.29,203.24,41.50403402]
[1755923903260,35.46,203.29,203.28,15.50403402]
[1755923903455,82.72,203.29,203.26,15.50403402]
[1755923903681,82.72,203.29,203.24,26.0]
[1755923903682,0.72,203.28,203.25,15.50403402]
[1755923903875,0.72,203.27,203.23,15.50403402]
[1755923904064,82.12450194,203.29,203.14,0.49227133]
[1755923904065,46.5,203.26,203.24,3.3087217]
[1755923904265,35.46,203.29,203.25,45.48275572]
[1755923904494,46.5,203.27,203.26,3.3087217]
[1755923904668,35.46,203.29,203.26,3.3087217]
[1755923904872,35.46,203.29,203.27,3.3087217]
[1755923905055,35.46,203.29,203.28,3.3087217]
[1755923905261,81.94,203.29,203.28,3.3087217]
[1755923905784,81.94,203.29,203.28,18.81275572]
[1755923907257,81.9,203.29,203.28,18.81275572]
[1755923907687,35.46,203.29,203.28,18.81275572]
[1755923908065,81.72,203.29,203.28,18.81275572]
[1755923908598,0.06,203.31,203.3,26.0]
[1755923908788,0.06,203.31,203.3,45.09707886]
[1755923908990,0.06,203.31,203.3,45.77707886]
[1755923909370,46.2,203.35,203.31,0.28432314]
[1755923909571,26.9,203.37,203.34,15.50403402]
[1755923909783,26.9,203.37,203.36,41.50403402]
[1755923909967,25.52,203.37,203.36,66.81083602]
[1755923910186,25.52,203.37,203.36,52.72350323]
[1755923910380,25.52,203.37,203.36,45.77707886]
[1755923910692,25.52,203.37,203.36,45.09707886]
[1755923910898,25.52,203.37,203.36,19.09707886]
[1755923911204,25.52,203.37,203.36,18.81275572]
[1755923911409,25.52,203.37,203.36,26.28432314]
[1755923911608,25.52,203.37,203.36,19.10085453]
[1755923911900,25.52,203.37,203.36,17.19241452]
[1755923912063,25.52,203.37,203.36,44.81246675]
[1755923912270,25.02,203.37,203.36,19.10085453]
[1755923912468,25.02,203.37,203.36,18.81464981]
[1755923912873,25.02,203.37,203.36,9.38741336]
[1755923913098,25.02,203.37,203.36,24.89144738]
[1755923913403,25.02,203.37,203.36,25.38318616]
[1755923913604,25.02,203.37,203.36,4.08667771]
[1755923913789,25.02,203.37,203.36,45.09897295]
[1755923914595,25.02,203.37,203.36,59.18630574]
[1755923914905,22.27515459,203.37,203.36,59.18630574]
[1755923915080,22.27515459,203.37,203.36,69.18630574]
[1755923915397,19.81450918,203.37,203.36,69.18630574]
[1755923915605,19.81450918,203.37,203.36,59.18630574]
[1755923915894,19.81450918,203.37,203.36,3.31061579]
[1755923916513,19.81450918,203.37,203.36,18.81464981]
[1755923917116,19.81450918,203.37,203.36,33.18630574]
[1755923917490,19.81450918,203.37,203.36,19.09897295]
[1755923917716,19.81450918,203.37,203.36,32.69456696]
[1755923918085,46.22,203.47,203.4,26.0]
[1755923918281,46.22,203.47,203.46,15.50403402]
[1755923918494,0.7,203.5,203.49,26.0]
[1755923918689,46.2,203.52,203.49,41.50403402]
[1755923918904,15.50403402,203.56,203.49,26.0]
[1755923919106,15.50403402,203.56,203.5,15.50403402]
[1755923919313,46.18,203.55,203.48,26.0]
[1755923919513,42.40403402,203.57,203.51,15.50403402]
[1755923919816,46.18,203.54,203.51,15.50403402]
[1755923920223,46.18,203.54,203.43,0.77589272]
[1755923920224,61.68403402,203.54,203.43,26.49156958]
[1755923920386,26.9,203.57,203.47,26.0]
[1755923920591,46.8,203.56,203.51,15.50403402]
[1755923920806,16.20403402,203.55,203.49,26.0]
[1755923921116,0.7,203.54,203.51,15.50403402]
[1755923921687,0.7,203.54,203.53,15.50403402]
[1755923921911,46.04,203.55,203.53,15.50403402]
[1755923922221,46.04,203.55,203.54,15.50403402]
[1755923922519,46.02,203.56,203.53,15.50403402]
[1755923922682,0.7,203.55,203.52,26.0]
[1755923922886,46.02,203.55,203.54,15.50403402]
[1755923923082,46.02,203.55,203.52,26.0]
[1755923923308,46.02,203.55,203.47,0.28432314]
[1755923923519,46.76450194,203.54,203.35,0.52176297]
[1755923923829,0.7,203.53,203.36,3.30419465]
[1755923924038,0.12450194,203.52,203.42,15.50403402]
[1755923924248,0.7,203.51,203.42,26.0]
[1755923924410,26.9,203.57,203.5,15.50403402]
[1755923924613,15.50403402,203.52,203.46,15.50403402]
[1755923924941,15.50403402,203.52,203.49,26.0]
[1755923925237,0.7,203.51,203.49,26.0]
[1755923925600,26.9,203.57,203.49,26.0]
[1755923925601,0.7,203.53,203.49,26.0]
[1755923925804,0.7,203.53,203.48,41.50403402]
[1755923926030,0.7,203.53,203.52,26.0]
[1755923926256,26.9,203.57,203.53,26.0]
[1755923926541,26.9,203.57,203.46,0.28432314]
[1755923926542,0.7,203.56,203.52,41.50403402]
[1755923926705,0.7,203.55,203.54,26.0]
[1755923927115,42.40403402,203.57,203.54,26.0]
[1755923927321,43.10403402,203.57,203.54,26.0]
[1755923927642,43.10403402,203.57,203.53,15.50403402]
[1755923927643,26.9,203.57,203.53,15.50403402]
[1755923928219,26.9,203.57,203.5,26.0]
[1755923928531,0.7,203.56,203.52,15.50403402]
[1755923928734,26.9,203.57,203.52,15.50403402]
[1755923928735,26.9,203.57,203.52,41.50403402]
[1755923928933,26.9,203.57,203.55,15.50403402]
[1755923929237,26.9,203.57,203.56,26.0]
[1755923929418,26.9,203.57,203.56,55.88395117]
[1755923929620,26.9,203.57,203.56,56.37520681]
[1755923929824,26.39,203.57,203.56,59.660653]
[1755923930529,0.06,203.59,203.57,13.87991715]
[1755923930840,0.7,203.72,203.62,39.87991715]
[1755923931045,0.7,203.68,203.62,41.50403402]
[1755923931355,0.7,203.69,203.62,26.28432314]
[1755923931556,0.7,203.73,203.66,26.0]
[1755923931726,0.7,203.73,203.67,0.49099032]
[1755923932050,0.7,203.73,203.69,41.50403402]
[1755923932232,0.7,203.73,203.72,15.50403402]
[1755923932554,0.7,203.73,203.72,26.0]
[1755923932756,0.7,203.73,203.72,41.50403402]
[1755923932925,0.7,203.73,203.72,48.08096476]
[1755923933124,0.7,203.73,203.72,47.66839476]
[1755923933329,0.7,203.73,203.72,32.16436074]
[1755923933547,0.7,203.76,203.72,47.66839476]
[1755923933846,108.54,203.78,203.73,15.50403402]
[1755923934232,0.7,203.77,203.73,15.50403402]
[1755923934429,0.7,203.76,203.74,15.50403402]
[1755923934627,108.54,203.78,203.74,15.50403402]
[1755923934628,0.7,203.75,203.74,26.0]
[1755923934851,0.7,203.75,203.73,15.50403402]
[1755923935036,0.7,203.75,203.73,26.0]
[1755923935236,73.12,203.78,203.74,15.50403402]
[1755923935543,73.82,203.78,203.77,15.50403402]
[1755923935952,73.82,203.78,203.76,41.50403402]
[1755923936129,0.7,203.77,203.75,15.50403402]
[1755923936453,15.50403402,203.76,203.73,4.8701281]
[1755923936648,15.50403402,203.76,203.73,26.0]
[1755923936848,46.7,203.75,203.7,15.50403402]
[1755923937032,46.7,203.75,203.73,26.0]
[1755923937033,0.7,203.74,203.73,26.0]
[1755923938043,0.7,203.74,203.73,15.50403402]
[1755923938236,46.7,203.74,203.65,26.77536168]
[1755923938436,46.7,203.74,203.72,26.0]
[1755923938626,0.7,203.73,203.72,26.0]
[1755923939457,0.7,203.73,203.7,15.50403402]
[1755923939458,46.58,203.73,203.71,15.50403402]
[1755923939656,45.88,203.73,203.71,15.50403402]
[1755923939843,0.7,203.72,203.71,15.50403402]
[1755923940241,16.20403402,203.72,203.53,13.59559401]
[1755923940465,0.7,203.71,203.66,4.91603751]
[1755923940665,0.12450194,203.7,203.51,0.67]
[1755923940840,0.7,203.69,203.52,4.43664583]
[1755923941041,0.12450194,203.68,203.52,4.35102091]
[1755923941258,0.7,203.69,203.56,26.0]
[1755923941456,46.48,203.69,203.57,4.43669314]
[1755923941760,45.78,203.69,203.68,15.50403402]
[1755923942933,46.44,203.72,203.68,15.50403402]
[1755923943139,0.200099,203.79,203.71,15.50403402]
[1755923943363,0.200099,203.79,203.76,15.50403402]
[1755923943565,45.920099,203.79,203.76,15.50403402]
[1755923943772,0.7,203.77,203.68,0.49096622]
[1755923944073,0.7,203.77,203.74,15.50403402]
[1755923944374,0.7,203.77,203.75,15.50403402]
[1755923945165,0.200099,203.79,203.76,15.50403402]
[1755923945471,0.200099,203.79,203.77,15.50403402]
[1755923945670,0.200099,203.79,203.77,41.50403402]
[1755923946673,0.200099,203.79,203.77,42.17403402]
[1755923946879,23.7241913,203.78,203.77,54.29048485]
[1755923947186,18.75453609,203.83,203.82,13.87991715]
[1755923947349,0.176666,203.86,203.82,13.87991715]
[1755923947350,0.176666,203.86,203.85,26.0]
[1755923947556,73.26,203.98,203.86,0.28432314]
[1755923947557,70.63517154,203.97,203.86,0.28432314]
[1755923947795,70.63517154,203.97,203.94,15.50403402]
[1755923947971,24.95561126,203.95,203.94,15.50403402]
[1755923948288,24.95561126,203.95,203.86,5.1e-07]
[1755923948458,24.53456854,203.95,203.93,1.96e-06]
[1755923948890,24.53456854,203.95,203.84,0.49058084]
[1755923949052,24.53456854,203.95,203.94,15.50403402]
[1755923949257,24.47493375,203.97,203.94,15.50403402]
[1755923949458,24.47493375,203.97,203.95,15.50403402]
[1755923949694,24.47493375,203.97,203.95,1.96e-06]
[1755923949989,24.54801117,203.95,203.85,3.25957832]
[1755923950189,24.54801117,203.95,203.94,1.96e-06]
[1755923950390,24.54801117,203.95,203.94,15.50403402]
[1755923950557,24.47493375,203.97,203.94,1.96e-06]
[1755923950766,25.17493375,203.97,203.85,0.49055678]
[1755923950991,25.17493375,203.97,203.92,1.96e-06]
[1755923951282,24.54801117,203.95,203.92,1.96e-06]
[1755923951471,69.94801117,203.95,203.92,1.96e-06]
[1755923951669,24.40367412,203.93,203.84,3.99211233]
[1755923951865,24.22908782,203.91,203.87,1.96e-06]
[1755923952074,39.53211424,203.89,203.78,2.55640744]
[1755923952269,15.50403402,203.84,203.78,2.55640744]
[1755923952464,45.38,203.84,203.8,15.50403402]
[1755923952664,0.7,203.88,203.78,2.55640744]
[1755923952665,45.36,203.86,203.83,15.50403402]
[1755923952971,45.36,203.87,203.84,17.30403402]
[1755923953179,0.61295542,203.93,203.86,15.50403402]
[1755923953180,0.7,203.93,203.86,15.50403402]
[1755923953358,0.7,203.91,203.89,15.50403402]
[1755923953558,60.90403402,203.93,203.84,1.8]
[1755923953787,60.90403402,203.93,203.91,26.0]
[1755923954178,0.7,203.92,203.9,26.0]
[1755923954491,46.06,203.92,203.91,26.0]
[1755923954708,45.36,203.92,203.91,26.0]
[1755923954991,45.36,203.95,203.91,15.50403402]
[1755923955175,0.7,203.97,203.93,15.50403402]
[1755923955369,26.9,203.98,203.92,41.50403402]
[1755923955565,0.7,203.96,203.92,41.50403402]
[1755923955761,0.7,203.96,203.84,2.29058084]
[1755923956006,0.7,203.96,203.95,26.0]
[1755923956162,0.2,203.96,203.95,26.0]
[1755923956794,45.46,203.96,203.9,4.78978131]
[1755923957090,45.46,203.96,203.94,26.0]
[1755923957292,26.9,203.98,203.95,15.50403402]
[1755923957475,26.9,203.98,203.94,41.50403402]
[1755923957813,26.9,203.98,203.94,26.0]
[1755923957958,72.08,203.98,203.94,26.0]
[1755923958161,0.7,203.97,203.94,41.50403402]
[1755923958465,87.58403402,203.98,203.96,26.0]
[1755923958767,15.50403402,203.97,203.91,15.50403402]
[1755923958994,0.7,203.96,203.91,15.50403402]
[1755923959202,45.84,203.95,203.9,26.0]
[1755923959404,0.7,203.94,203.9,26.0]
[1755923959693,0.7,203.94,203.84,20.3941233]
[1755923959694,1.31292537,203.94,203.84,20.3941233]
[1755923959862,15.50403402,203.91,203.84,15.50403402]
[1755923960059,15.50403402,203.91,203.77,0.49]
[1755923960060,0.7,203.9,203.77,0.49]
[1755923960264,15.50403402,203.89,203.83,15.50403402]
[1755923960487,45.8,203.88,203.82,15.50403402]
[1755923960665,0.7,203.88,203.84,15.50403402]
[1755923960998,45.06,203.89,203.87,15.50403402]
[1755923961299,45.04,203.9,203.88,15.50403402]
[1755923961684,0.7,203.92,203.88,15.50403402]
[1755923962008,0.7,203.96,203.91,15.50403402]
[1755923962214,0.7,203.99,203.93,15.50403402]
[1755923962511,45.0,203.95,203.93,15.50403402]
[1755923962806,45.7,203.95,203.93,15.50403402]
[1755923963013,0.7,203.99,203.94,15.50403402]
[1755923963214,72.58,203.98,203.97,26.0]
[1755923963421,0.7,203.97,203.95,26.0]
[1755923963710,0.7,203.96,203.95,26.0]
[1755923963879,0.7,203.96,203.9,1.8]
[1755923964080,44.96,203.95,203.93,15.50403402]
[1755923964306,45.66,203.95,203.93,26.0]
[1755923964478,0.7,203.94,203.93,26.0]
[1755923964678,44.92,203.95,203.93,41.50403402]
[1755923964877,27.6,203.98,203.94,15.50403402]
[1755923965092,44.9,203.97,203.93,26.0]
[1755923965302,0.7,203.96,203.93,41.50403402]
[1755923965617,0.7,203.95,203.93,15.50403402]
[1755923965792,0.7,203.94,203.9,1.8]
[1755923965979,0.7,203.94,203.92,15.50403402]
[1755923966381,1.31295542,203.93,203.9,1.8]
[1755923966677,13.59559401,203.97,203.74,17.50345698]
[1755923966678,0.7,203.95,203.92,15.50403402]
[1755923966906,44.86,203.94,203.92,15.50403402]
[1755923967099,0.7,203.93,203.91,15.50403402]
[1755923967278,0.71,203.92,203.89,26.0]
[1755923967477,0.71,203.91,203.89,15.50403402]
[1755923967674,61.66707963,203.9,203.76,0.49]
[1755923967892,15.50403402,203.84,203.77,3.26651307]
[1755923968203,14.30559401,203.89,203.76,4.92099381]
[1755923968204,1.32325614,203.83,203.76,15.50403402]
[1755923968389,44.86,203.82,203.78,15.50403402]
[1755923968588,1.32331632,203.81,203.66,0.03]
[1755923968796,15.50403402,203.77,203.71,15.50403402]
[1755923969003,1.32346682,203.76,203.66,0.03]
[1755923969205,0.71,203.8,203.75,15.50403402]
[1755923969512,45.71,203.79,203.69,0.49]
[1755923969713,45.0,203.78,203.7,3.27933813]
[1755923969890,0.71,203.79,203.71,3.27933813]
[1755923970097,0.71,203.79,203.72,3.27933813]
[1755923970401,44.98,203.78,203.73,3.27933813]
[1755923970600,0.71,203.78,203.76,15.50403402]
[1755923970795,0.71,203.77,203.74,26.0]
[1755923970994,0.71,203.76,203.75,15.50403402]
[1755923971194,45.63,203.76,203.75,15.50403402]
[1755923971392,45.63,203.76,203.75,26.0]
[1755923971796,0.71,203.85,203.75,26.0]
[1755923972025,15.50403402,203.83,203.8,26.0]
[1755923972227,60.46403402,203.84,203.8,26.0]
[1755923972425,0.71,203.82,203.8,26.0]
[1755923973328,44.92,203.82,203.81,3.28907199]
[1755923973505,44.92,203.82,203.8,26.0]
[1755923973905,44.92,203.82,203.78,41.50403402]
[1755923974230,45.63,203.82,203.78,26.0]
[1755923974530,0.71,203.85,203.79,18.7939088]
[1755923974722,44.86,203.81,203.8,3.28987478]
[1755923974911,44.86,203.81,203.8,3.29016364]
[1755923975602,44.86,203.81,203.8,29.29016364]
[1755923976107,0.62,203.81,203.71,0.72]
[1755923976316,13.59559401,203.79,203.68,0.03]
[1755923976521,15.50403402,203.76,203.7,15.50403402]
[1755923976724,1.23340661,203.78,203.68,5.02664522]
[1755923976927,15.50403402,203.76,203.68,5.02664522]
[1755923977114,60.26403402,203.75,203.69,15.50403402]
[1755923977311,15.50403402,203.74,203.72,26.0]
[1755923977528,15.50403402,203.73,203.68,5.02664522]
[1755923977734,15.50403402,203.74,203.71,26.0]
[1755923977944,15.50403402,203.72,203.71,26.0]
[1755923978113,15.50403402,203.72,203.69,0.72]
[1755923978306,0.61331632,203.81,203.7,16.22403402]
[1755923978506,15.50403402,203.79,203.73,26.0]
[1755923978707,15.50403402,203.79,203.76,26.0]
[1755923978903,15.50403402,203.77,203.76,26.0]
[1755923979423,44.7,203.81,203.74,26.0]
[1755923979627,15.50403402,203.77,203.74,26.0]
[1755923979917,15.50403402,203.77,203.73,0.72]
[1755923979918,15.50403402,203.79,203.76,26.0]
[1755923980131,15.50403402,203.79,203.76,26.72]
[1755923980438,15.50403402,203.78,203.75,26.0]
[1755923980738,44.7,203.81,203.76,26.0]
[1755923980937,15.50403402,203.77,203.76,26.0]
[1755923981140,45.32,203.81,203.74,26.0]
[1755923981308,15.50403402,203.78,203.74,26.0]
[1755923981514,15.50403402,203.77,203.74,26.0]
[1755923981712,15.50403402,203.76,203.73,0.72]
[1755923981922,44.7,203.81,203.75,26.0]
[1755923982126,0.61322605,203.84,203.75,26.0]
[1755923982331,60.06403402,203.8,203.75,26.0]
[1755923982530,0.61313582,203.87,203.76,0.72]
[1755923982812,15.50403402,203.85,203.79,15.50403402]
[1755923983011,1.23301554,203.91,203.84,26.0]
[1755923983230,15.50403402,203.88,203.84,26.0]
[1755923983541,1.23283522,203.97,203.87,15.50403402]
[1755923983735,79.88,203.93,203.9,26.0]
[1755923983947,50.84403402,203.93,203.9,26.0]
[1755923984115,15.50403402,203.91,203.89,26.0]
[1755923984317,15.50403402,203.91,203.86,15.50403402]
[1755923984544,35.34,203.93,203.88,15.50403402]
[1755923984841,60.00403402,203.92,203.86,15.50403402]
[1755923985043,15.50403402,203.89,203.85,26.0]
[1755923985247,60.00403402,203.88,203.85,26.0]
[1755923985540,44.5,203.88,203.86,26.0]
[1755923985712,0.61301554,203.91,203.86,42.22403402]
[1755923985920,35.34,203.93,203.87,0.72]
[1755923986126,44.46,203.92,203.88,15.50403402]
[1755923986341,35.95295542,203.93,203.84,26.0]
[1755923986635,44.46,203.92,203.88,15.50403402]
[1755923986838,44.44,203.91,203.9,41.50403402]
[1755923987044,35.34,203.93,203.9,0.72]
[1755923987250,79.76,203.93,203.89,41.50403402]
[1755923987540,79.76,203.93,203.89,42.22403402]
[1755923987747,44.38,203.92,203.89,26.72]
[1755923987929,44.38,203.91,203.89,42.22403402]
[1755923988549,35.34,203.93,203.89,42.22403402]
[1755923988839,44.36,203.92,203.89,42.22403402]
[1755923989038,35.34,203.93,203.89,42.22403402]
[1755923989231,44.3,203.92,203.89,42.22403402]
[1755923989428,35.34,203.93,203.9,15.50403402]
[1755923989620,44.3,203.91,203.9,16.22403402]
[1755923990322,44.28,203.92,203.9,16.22403402]
[1755923991147,35.34,203.93,203.9,16.22403402]
[1755923991357,44.24,203.92,203.9,16.22403402]
[1755923991732,0.61283522,203.97,203.91,16.22403402]
[1755923991937,44.16,203.96,203.95,15.50403402]
[1755923992258,44.16,203.96,203.94,15.50403402]
[1755923992664,44.16,203.96,203.95,41.50403402]
[1755923993366,44.16,203.96,203.95,26.0]
[1755923993546,44.16,203.96,203.91,0.72]
[1755923993732,44.16,203.96,203.95,15.50403402]
[1755923994149,60.28403402,203.96,203.9,15.50403402]
[1755923994371,26.9,203.98,203.92,15.50403402]
[1755923994669,44.06,203.95,203.92,15.50403402]
[1755923995044,44.06,203.95,203.94,26.0]
[1755923996673,43.96,203.95,203.94,26.0]
[1755923997660,26.9,203.98,203.93,15.50403402]
[1755923997841,43.9,203.97,203.92,26.0]
[1755923998041,43.9,203.96,203.93,15.50403402]
[1755923998549,43.9,203.96,203.93,16.21403402]
[1755923998768,43.01683919,203.98,203.93,15.50403402]
[1755923998972,43.01683919,203.98,203.92,41.50403402]
[1755923998973,43.86,203.97,203.92,41.50403402]
[1755923999170,44.45286526,203.96,203.93,15.50403402]
[1755923999374,43.84,203.96,203.93,15.50403402]
[1755923999761,43.84,203.96,203.95,15.50403402]
[1755923999961,43.8,203.96,203.94,15.50403402]
[1755924000281,43.8,203.96,203.82,13.59559401]
[1755924000282,13.59559401,203.94,203.81,0.71]
[1755924000576,10.67674878,203.89,203.83,10.67674878]
[1755924000879,0.61301554,203.91,203.85,10.67674878]
[1755924001062,11.2897042,203.93,203.87,10.67674878]
[1755924001381,43.82,203.92,203.87,10.67674878]
[1755924001697,43.82,203.92,203.91,26.0]
[1755924001875,43.82,203.92,203.8,0.03]
[1755924002064,44.43301554,203.91,203.83,0.71]
[1755924002378,60.6201904,203.91,203.84,16.18717486]
[1755924002574,0.61301554,203.91,203.85,16.18717486]
[1755924002776,43.78,203.9,203.84,16.18717486]
[1755924003278,0.61307567,203.89,203.8,0.74]
[1755924003482,43.74,203.88,203.84,16.18717486]
[1755924003989,16.18717486,203.85,203.8,0.03]
[1755924004166,16.18717486,203.82,203.8,0.03]
[1755924004480,44.35331632,203.81,203.8,0.03]
[1755924004676,43.74,203.81,203.8,0.03]
[1755924004980,44.97331632,203.81,203.8,0.03]
[1755924005153,60.54717486,203.81,203.8,0.03]
[1755924005349,74.42709201,203.81,203.8,0.03]
[1755924006074,75.04040833,203.81,203.8,0.03]
[1755924006264,75.04040833,203.81,203.77,0.03]
[1755924006265,13.59559401,203.78,203.77,0.03]
[1755924006488,0.28432314,203.75,203.68,0.03]
[1755924006695,13.59559401,203.67,203.49,16.18717486]
[1755924006894,0.28432314,203.65,203.51,19.49481435]
[1755924007193,16.18717486,203.59,203.52,0.71]
[1755924007372,16.18717486,203.59,203.5,0.03]
[1755924007373,16.18717486,203.53,203.5,0.03]
[1755924007565,16.18717486,203.51,203.5,0.03]
[1755924007767,16.18717486,203.55,203.5,0.03]
[1755924007963,44.5141299,203.54,203.5,0.74]
[1755924008197,0.6141299,203.54,203.5,0.03]
[1755924008380,43.9,203.53,203.37,10.4917146]
[1755924008585,43.88,203.52,203.47,16.18717486]
[1755924008796,16.18717486,203.51,203.45,16.18717486]
[1755924009097,16.18717486,203.48,203.32,0.03]
[1755924009307,16.18717486,203.42,203.32,0.03]
[1755924009471,0.61452239,203.41,203.27,5.04710433]
[1755924009670,60.14717486,203.4,203.23,10.0]
[1755924009914,60.14717486,203.4,203.16,0.49222287]
[1755924009915,0.61458282,203.39,203.22,4.84540743]
[1755924010233,16.18717486,203.32,203.16,0.49222287]
[1755924010373,44.63482465,203.31,203.26,15.18717486]
[1755924010705,61.49199951,203.31,203.23,0.71]
[1755924010913,16.18717486,203.3,203.24,2.57116846]
[1755924011077,44.63488513,203.29,203.24,2.57116846]
[1755924011281,16.80205999,203.29,203.24,2.57116846]
[1755924011477,16.80205999,203.29,203.11,16.18717486]
[1755924011478,16.18717486,203.25,203.15,0.71]
[1755924011811,16.80220944,203.24,203.19,2.57170501]
[1755924011973,16.18717486,203.22,203.11,0.71]
[1755924012296,16.18717486,203.2,203.14,2.57229439]
[1755924012475,0.61482465,203.31,203.19,16.18717486]
[1755924012678,0.61482465,203.31,203.15,1.2022471]
[1755924012679,0.61479441,203.32,203.27,42.18717486]
[1755924012897,44.42,203.31,203.3,26.0]
[1755924013098,61.89199951,203.31,203.21,16.18717486]
[1755924013276,16.18717486,203.27,203.2,16.18717486]
[1755924013480,0.61485489,203.3,203.19,0.71]
[1755924013674,44.46,203.29,203.23,16.18717486]
[1755924013871,16.80209024,203.28,203.19,0.71]
[1755924014084,0.67,203.34,203.27,16.18717486]
[1755924014297,45.05476417,203.33,203.29,16.18717486]
[1755924014490,45.05476417,203.33,203.23,0.71]
[1755924014491,45.11,203.32,203.28,16.18717486]
[1755924014802,16.18717486,203.29,203.18,0.71]
[1755924015004,0.61491538,203.28,203.24,16.18717486]
[1755924015231,0.61485489,203.3,203.18,0.28432314]
[1755924015437,0.61473394,203.34,203.3,26.0]
[1755924015592,44.48,203.33,203.29,16.18717486]
[1755924015793,0.61479441,203.32,203.29,16.18717486]
[1755924016020,0.67,203.38,203.31,16.18717486]
[1755924016226,45.05464326,203.37,203.26,0.71]
[1755924016440,45.05464326,203.37,203.34,16.18717486]
[1755924016645,0.61437137,203.46,203.36,16.18717486]
[1755924016863,0.61419025,203.52,203.48,26.0]
[1755924017141,0.67,203.56,203.48,26.0]
[1755924017311,39.57409972,203.55,203.53,26.0]
[1755924017515,38.96,203.55,203.54,16.18717486]
[1755924018221,44.62,203.55,203.54,42.18717486]
[1755924018418,44.62,203.55,203.54,16.18717486]
[1755924018858,44.58,203.56,203.54,16.18717486]
[1755924019344,44.58,203.56,203.47,0.71]
[1755924019549,16.18717486,203.54,203.47,16.18717486]
[1755924019749,16.18717486,203.48,203.41,16.18717486]
[1755924019915,0.61434118,203.47,203.42,16.18717486]
[1755924020245,44.56,203.46,203.37,0.71]
[1755924020423,0.61440157,203.45,203.43,16.18717486]
[1755924020741,0.61440157,203.45,203.42,16.18717486]
[1755924021110,0.61440157,203.45,203.44,26.0]
[1755924021337,0.61440157,203.45,203.35,0.71]
[1755924021551,44.5,203.44,203.4,16.18717486]
[1755924021755,0.61440157,203.45,203.41,16.18717486]
[1755924021960,45.11446197,203.43,203.35,0.71]
[1755924022232,44.5,203.42,203.37,16.18717486]
[1755924022427,16.18717486,203.38,203.25,0.71]